fUSD/lending_fUSD_20250402
["ID","MTS","AMOUNT","RATE_DAILY","PERIOD"]
[357015007,1743578834801,260.4103811,0.0003,30]
[357015008,1743578835455,270.0455652,0.0003,30]
[357015009,1743578836110,280.03725112,0.0003,30]
[357015010,1743578836914,290.39862941,0.0003,30]
[357015011,1743578837544,453.0,0.0003,30]
[357015012,1743578840082,500.0,0.0003,30]
[357015013,1743578840712,518.5,0.0003,30]
[357015014,1743578841381,537.6845,0.0003,30]
[357015015,1743578842038,557.5788265,0.0003,30]
[357015016,1743578842594,5142.64197715,0.0001305,2]
[357015017,1743578842646,578.20924308,0.0003,30]
[357015018,1743578843295,599.60298507,0.0003,30]
[357015019,1743578843983,621.78829552,0.0003,30]
[357015020,1743578844643,644.79446246,0.0003,30]
[357015021,1743578845270,668.65185757,0.0003,30]
[357015022,1743578845913,693.3919763,0.0003,30]
[357015023,1743578846568,719.04747942,0.0003,30]
[357015024,1743578847227,745.65223616,0.0003,30]
[357015025,1743578848069,773.2413689,0.0003,30]
[357015026,1743578848676,801.85129955,0.0003,30]
[357015027,1743578849604,831.51979763,0.0003,30]
[357015028,1743578850280,862.28603014,0.0003,30]
[357015029,1743578850920,894.19061326,0.0003,30]
[357015030,1743578851561,927.27566595,0.0003,30]
[357015031,1743578852235,961.58486559,0.0003,30]
[357015032,1743578852881,1500.0,0.0003,30]
[357015033,1743578857976,151.0,0.0003,30]
[357015034,1743578859220,156.587,0.0003,30]
[357015035,1743578859890,162.380719,0.0003,30]
[357015036,1743578860641,168.3888056,0.0003,30]
[357015037,1743578861158,174.61919141,0.0003,30]
[357015038,1743578861782,181.08010149,0.0003,30]
[357015039,1743578862461,187.78006525,0.0003,30]
[357015040,1743578863113,194.72792766,0.0003,30]
[357015041,1743578863778,201.93286099,0.0003,30]
[357015042,1743578864483,209.40437684,0.0003,30]
[357015043,1743578865188,217.15233878,0.0003,30]
[357015044,1743578865835,225.18697532,0.0003,30]
[357015045,1743578866473,233.51889341,0.0003,30]
[357015046,1743578867133,242.15909246,0.0003,30]
[357015047,1743578867848,251.11897888,0.0003,30]
[357015048,1743578868533,260.4103811,0.0003,30]
[357015049,1743578869255,270.0455652,0.0003,30]
[357015050,1743578870620,280.03725112,0.0003,30]
[357015051,1743578871248,290.39862941,0.0003,30]
[357015052,1743578871967,453.0,0.0003,30]
[357015053,1743578875441,4258.9312773,0.00013,2]
[357015054,1743578896871,9915.99030987,0.0001439,2]
[357015055,1743578899974,1000.0,0.000135,2]
[357015056,1743578900258,295.93015347,0.000125,2]
[357015057,1743578909186,3988.12797301,0.00014,2]
[357015058,1743578925364,273.09416383,0.00028,60]
[357015059,1743578927952,48465.70024811,0.00013368,2]
[357015060,1743578941049,-3110.42688851,0.000149,2]
[357015061,1743578941080,-185.58985222,0.000149,2]
[357015062,1743578941110,-162.18215287,0.000149,2]
[357015063,1743578941141,-634.98748246,0.000149,2]
[357015071,1743579003403,350.0,0.000149,12]
[357015076,1743579032248,-300.0,0.00014899,2]
[357015078,1743579032259,-424.31726255,0.000149,2]
[357015080,1743579032268,-200.50325299,0.000149,2]
[357015082,1743579032279,-185.58985221,0.000149,2]
[357015084,1743579032288,-150.0,0.0001495,2]
[357015086,1743579032299,-259.37160149,0.00015,2]
[357015087,1743579032311,-3079.51141144,0.00015,2]
[357015088,1743579032322,-2501.25394069,0.00015,2]
[357015089,1743579032336,-64525.6743075,0.00015,2]
[357015090,1743579032406,-6357.68798598,0.00015,2]
[357015091,1743579032525,-7177.63186372,0.00015,2]
[357015125,1743579038476,-86423.54554063,0.00015,2]
[357015126,1743579038490,-374.51306789,0.00015,2]
[357015127,1743579038505,-322.53945204,0.00015,2]
[357015128,1743579038543,-2138.51029125,0.00015,2]
[357015129,1743579038576,-794.31,0.00015,2]
[357015130,1743579038589,-790.65634758,0.00015,2]
[357015287,1743579043808,-1376.87102119,0.00015,2]
[357015303,1743579044982,-1034.7613594,0.00015,2]
[357015304,1743579044995,-1525.57746521,0.00015,2]
[357015309,1743579046200,-518.77499894,0.00015,2]
[357015310,1743579046226,-500.0,0.00015,2]
[357015311,1743579046243,-2008.48145401,0.00015,2]
[357015317,1743579047451,-1713576.69057659,0.00015,2]
[357015318,1743579047461,-1998436.99396546,0.00015,2]
[357015319,1743579047470,-1247209.85417564,0.00015,2]
[357015320,1743579047480,-1000.0,0.00015,2]
[357015321,1743579047490,-1000.0,0.00015,2]
[357015322,1743579047504,-1000.0,0.00015,2]
[357015323,1743579047513,-1000.0,0.00015,2]
[357015324,1743579047522,-1000.0,0.00015,2]
[357015325,1743579047532,-1000.0,0.00015,2]
[357015326,1743579047542,-1000.0,0.00015,2]
[357015327,1743579047552,-1000.0,0.00015,2]
[357015328,1743579047561,-1000.0,0.00015,2]
[357015329,1743579047570,-1000.0,0.00015,2]
[357015330,1743579047581,-1000.0,0.00015,2]
[357015331,1743579047590,-1000.0,0.00015,2]
[357015332,1743579047601,-1000.0,0.00015,2]
[357015333,1743579047611,-1000.0,0.00015,2]
[357015334,1743579047621,-1000.0,0.00015,2]
[357015335,1743579047633,-1000.0,0.00015,2]
[357015336,1743579047643,-1000.0,0.00015,2]
[357015337,1743579047652,-1000.0,0.00015,2]
[357015338,1743579047662,-1000.0,0.00015,2]
[357015339,1743579047671,-1000.0,0.00015,2]
[357015340,1743579047682,-1000.0,0.00015,2]
[357015341,1743579047692,-1000.0,0.00015,2]
[357015342,1743579047702,-1000.0,0.00015,2]
[357015343,1743579047713,-1000.0,0.00015,2]
[357015344,1743579047722,-1000.0,0.00015,2]
[357015345,1743579047732,-1000.0,0.00015,2]
[357015346,1743579047741,-1000.0,0.00015,2]
[357015347,1743579047750,-1000.0,0.00015,2]
[357015348,1743579047761,-1000.0,0.00015,2]
[357015349,1743579047771,-736.25126461,0.00015,2]
[357015350,1743579047780,-254269.11893714,0.00015,2]
[357015351,1743579047790,-600.23,0.00015585,2]
[357015352,1743579047799,-600.23,0.0001559,2]
[357015353,1743579047808,-600.23,0.00015594,2]
[357015354,1743579047818,-600.23,0.00015598,2]
[357015355,1743579047827,-600.23,0.00015602,2]
[357015356,1743579047836,-299.99,0.00015606,2]
[357015357,1743579047846,-600.23,0.00015606,2]
[357015358,1743579047855,-600.23,0.0001561,2]
[357015359,1743579047864,-600.23,0.00015614,2]
[357015360,1743579047874,-600.23,0.00015618,2]
[357015361,1743579047883,-600.23,0.00015622,2]
[357015362,1743579047892,-600.23,0.00015627,2]
[357015363,1743579047902,-600.23,0.00015631,2]
[357015364,1743579047911,-600.23,0.00015635,2]
[357015365,1743579047921,-600.23,0.00015639,2]
[357015366,1743579047930,-600.23,0.00015643,2]
[357015367,1743579047940,-600.23,0.00015647,2]
[357015368,1743579047950,-600.23,0.00015651,2]
[357015369,1743579047959,-600.23,0.00015655,2]
[357015370,1743579047970,-600.23,0.00015659,2]
[357015371,1743579047981,-600.23,0.00015663,2]
[357015372,1743579047992,-503.79589552,0.00015973,2]
[357015373,1743579048001,-533.334,0.00015973,2]
[357015374,1743579048011,-533.334,0.00015973,2]
[357015375,1743579048020,-533.334,0.00015973,2]
[357015376,1743579048030,-533.334,0.00015973,2]
[357015377,1743579048040,-533.334,0.00015973,2]
[357015378,1743579048050,-533.334,0.00015973,2]
[357015379,1743579048059,-533.334,0.00015973,2]
[357015380,1743579048069,-533.334,0.00015973,2]
[357015381,1743579048079,-533.334,0.00015973,2]
[357015382,1743579048088,-533.334,0.00015973,2]
[357015383,1743579048098,-150.0,0.00015975,2]
[357015384,1743579048107,-500.0,0.00016,2]
[357015385,1743579048118,-250.0,0.00016045,2]
[357015386,1743579048127,-1852.42,0.00016045,2]
[357015387,1743579048137,-163.61,0.000161,2]
[357015388,1743579048147,-174.36,0.000161,2]
[357015389,1743579048157,-163.97,0.000161,2]
[357015390,1743579048166,-476.32,0.000161,2]
[357015391,1743579048176,-157.17,0.000161,2]
[357015392,1743579048185,-365.06,0.000161,2]
[357015393,1743579048195,-443.88,0.000161,2]
[357015394,1743579048204,-783.54,0.000161,2]
[357015395,1743579048214,-150.0,0.000161,2]
[357015396,1743579048223,-150.0,0.000161,2]
[357015397,1743579048232,-150.0,0.000161,2]
[357015398,1743579048242,-150.0,0.000161,2]
[357015399,1743579048251,-150.0,0.000161,2]
[357015400,1743579048260,-443.88,0.000161,2]
[357015401,1743579048269,-783.54,0.000161,2]
[357015402,1743579048279,-150.0,0.000161,2]
[357015403,1743579048288,-783.54,0.000161,2]
[357015404,1743579048298,-783.54,0.000161,2]
[357015405,1743579048317,-183.42,0.00016199,2]
[357015406,1743579048327,-200.0,0.00016203,2]
[357015407,1743579048338,-23900.0,0.00016208,2]
[357015408,1743579048348,-2231.86,0.00016223,2]
[357015409,1743579048358,-150.77059524,0.00016273,2]
[357015410,1743579048367,-420.0,0.00016308,2]
[357015411,1743579048377,-350.0,0.00016389,12]
[357015412,1743579048387,-150.0,0.00016389,2]
[357015413,1743579048397,-350.0,0.0001639,12]
[357015414,1743579048408,-150.0,0.0001639,2]
[357015415,1743579048417,-1112.82,0.00016513,2]
[357015416,1743579048428,-150.0,0.00016691,7]
[357015417,1743579048438,-1000.0,0.00016829,2]
[357015418,1743579048448,-155.16,0.00016829,2]
[357015419,1743579048458,-200.0,0.00016927,2]
[357015420,1743579048468,-3010.07,0.00016985,2]
[357015421,1743579048477,-166.66,0.00017334,2]
[357015422,1743579048487,-587.0,0.0001785,2]
[357015423,1743579048501,-573.0,0.00017904,2]
[357015424,1743579048511,-1365.0,0.00017904,2]
[357015425,1743579048521,-789.0,0.00017904,2]
[357015426,1743579048537,-1275.0,0.00017904,2]
[357015427,1743579048547,-1434.0,0.00017904,2]
[357015428,1743579048558,-909.0,0.00017904,2]
[357015429,1743579048568,-4094.0,0.00017904,2]
[357015430,1743579048578,-543.0,0.00017904,2]
[357015431,1743579048588,-3950.0,0.00017904,2]
[357015432,1743579048597,-1017.0,0.00017904,2]
[357015433,1743579048607,-151.0,0.00017904,2]
[357015434,1743579048616,-156.643,0.00017904,2]
[357015435,1743579048626,-643.0,0.00017904,2]
[357015436,1743579048636,-300.0,0.00018199,2]
[357015437,1743579048645,-166.66,0.00018287,2]
[357015438,1743579048654,-418.48,0.00018368,2]
[357015439,1743579048663,-162.57649127,0.00018567,2]
[357015440,1743579048671,-157.24,0.00018653,2]
[357015441,1743579048680,-1112.82,0.00018777,2]
[357015442,1743579048689,-1000.0,0.00018933,2]
[357015443,1743579048698,-317.97108133,0.00018973,2]
[357015444,1743579048708,-213.6707104,0.00018973,2]
[357015445,1743579048717,-564.08006076,0.00018973,2]
[357015446,1743579048727,-313.51591052,0.00018973,2]
[357015447,1743579048736,-502.01642618,0.00018973,2]
[357015448,1743579048745,-605.15964694,0.00018973,2]
[357015449,1743579048755,-284.0765986,0.00019,2]
[357015450,1743579048764,-747.24818061,0.00019,2]
[357015451,1743579048774,-83895.47501637,0.00019,2]
[357015452,1743579048783,-166.66,0.00019241,2]
[357015453,1743579048793,-823.0,0.00019538,2]
[357015454,1743579048802,-300.0,0.00019569,2]
[357015455,1743579048812,-172.99,0.00019586,2]
[357015456,1743579048822,-4120.7795889,0.000199,3]
[357015457,1743579048831,-4999.99999801,0.0002,2]
[357015458,1743579048841,-20462.2445562,0.0002,4]
[357015459,1743579048851,-2974.73519881,0.0002,4]
[357015460,1743579048860,-2000.0,0.0002,4]
[357015461,1743579048869,-151.59,0.0002,2]
[357015462,1743579048879,-151.59,0.0002,2]
[357015463,1743579048888,-151.59,0.0002,2]
[357015464,1743579048898,-151.59,0.0002,2]
[357015465,1743579048907,-151.59,0.0002,2]
[357015466,1743579048917,-151.59,0.0002,2]
[357015467,1743579048927,-151.59,0.0002,2]
[357015468,1743579048936,-151.59,0.0002,2]
[357015469,1743579048946,-151.59,0.0002,2]
[357015470,1743579048955,-151.59,0.0002,2]
[357015471,1743579048965,-151.59,0.0002,2]
[357015472,1743579048974,-151.59,0.0002,2]
[357015473,1743579048984,-151.59,0.0002,2]
[357015474,1743579048993,-151.59,0.0002,2]
[357015475,1743579049003,-151.59,0.0002,2]
[357015476,1743579049012,-151.59,0.0002,2]
[357015477,1743579049021,-151.59,0.0002,2]
[357015478,1743579049031,-151.59,0.0002,2]
[357015479,1743579049040,-151.59,0.0002,2]
[357015480,1743579049050,-151.59,0.0002,2]
[357015481,1743579049059,-151.59,0.0002,2]
[357015482,1743579049069,-151.59,0.0002,2]
[357015483,1743579049079,-151.59,0.0002,2]
[357015484,1743579049089,-151.59,0.0002,2]
[357015485,1743579049099,-151.59,0.0002,2]
[357015486,1743579049109,-151.59,0.0002,2]
[357015487,1743579049118,-151.59,0.0002,2]
[357015488,1743579049128,-151.59,0.0002,2]
[357015489,1743579049137,-166.66,0.00020195,2]
[357015490,1743579049147,-167.42,0.00020313,2]
[357015491,1743579049157,-500.0,0.00020561,2]
[357015492,1743579049166,-573.0,0.00020904,2]
[357015493,1743579049176,-1365.0,0.00020904,2]
[357015494,1743579049186,-789.0,0.00020904,2]
[357015495,1743579049195,-1275.0,0.00020904,2]
[357015496,1743579049205,-1117.843,0.00020904,2]
[357015497,1743579049215,-3950.0,0.00020904,2]
[357015498,1743579049225,-1017.0,0.00020904,2]
[357015499,1743579049235,-151.0,0.00020904,2]
[357015500,1743579049244,-643.0,0.00020904,2]
[357015501,1743579049254,-1150.59014971,0.00021,2]
[357015502,1743579049264,-189.89919484,0.00021,2]
[357015503,1743579049273,-1000.0,0.00021036,2]
[357015504,1743579049283,-1112.82,0.00021041,2]
[357015505,1743579049294,-505.0,0.00021318,2]
[357015506,1743579049303,-1152.0,0.00021385,2]
[357015507,1743579049314,-1000.0,0.00021479,2]
[357015508,1743579049323,-5047.44516507,0.000217,2]
[357015509,1743579049333,-150.0,0.00021917,2]
[357015510,1743579049343,-246.84944726,0.00022,2]
[357015511,1743579049353,-500.0,0.00022,2]
[357015512,1743579049362,-162.57649127,0.00022233,2]
[357015513,1743579049372,-10226.85665881,0.000225,2]
[357015514,1743579049382,-172.99,0.00022819,2]
[357015515,1743579049391,-1000.0,0.0002314,2]
[357015516,1743579049401,-150.0,0.00023287,2]
[357015517,1743579049410,-1112.82,0.00023305,2]
[357015518,1743579049420,-157.24,0.00023316,2]
[357015519,1743579049431,-1357.0,0.00023407,2]
[357015520,1743579049441,-151.0,0.00023778,7]
[357015521,1743579049451,-151.0,0.00023778,7]
[357015522,1743579049461,-3010.07,0.00023778,2]
[357015523,1743579049471,-540.15,0.00023836,2]
[357015524,1743579049481,-94695.26,0.000239,2]
[357015525,1743579049493,-3950.0,0.00023904,2]
[357015526,1743579049506,-1017.0,0.00023904,2]
[357015527,1743579049516,-151.0,0.00023904,2]
[357015528,1743579049526,-643.0,0.00023904,2]
[357015529,1743579049538,-151.59,0.0002399,2]
[357015530,1743579049547,-5000.00022321,0.00024,5]
[357015531,1743579049557,-150.0,0.00024657,2]
[357015532,1743579049567,-321.39,0.00024658,2]
[357015533,1743579049578,-5000.0,0.0002479,2]
[357015534,1743579049589,-151.59,0.0002479,2]
[357015535,1743579049599,-151.59,0.0002479,2]
[357015536,1743579049609,-156.11868,0.000248,7]
[357015537,1743579049618,-151.757808,0.000248,7]
[357015538,1743579049629,-359498.526376,0.000248,3]
[357015539,1743579049639,-163.89117501,0.0002488,7]
[357015540,1743579049649,-151.59,0.0002489,2]
[357015541,1743579049659,-356606.638501,0.000249,3]
[357015542,1743579049669,-152.85,0.000249,7]
[357015543,1743579049679,-152.85,0.000249,7]
[357015544,1743579049689,-172.835934,0.000249,7]
[357015545,1743579049699,-172.835934,0.000249,7]
[357015546,1743579049709,-155.28397,0.000249,7]
[357015547,1743579049719,-153.776145,0.000249,7]
[357015548,1743579049731,-151.0,0.000249,7]
[357015549,1743579049740,-1624.97210168,0.00025,7]
[357015550,1743579049750,-286.1726034,0.00025,4]
[357015551,1743579049760,-151.59,0.00025,2]
[357015552,1743579049770,-11290.26350808,0.0002501,2]
[357015553,1743579049781,-4226.77836899,0.0002501,2]
[357015554,1743579049791,-1000.0,0.00025243,2]
[357015555,1743579049802,-155.16,0.00025243,2]
[357015556,1743579049811,-272.0,0.000253,10]
[357015557,1743579049821,-1112.82,0.00025569,2]
[357015558,1743579049831,-162.57649127,0.000259,2]
[357015559,1743579049841,-3052.79776808,0.00026,2]
[357015560,1743579049850,-150.0,0.00026027,2]
[357015561,1743579049860,-12247.09681758,0.000264,2]
[357015562,1743579049870,-163.16,0.00026849,2]
[357015563,1743579049881,-158.8,0.00026849,2]
[357015564,1743579049891,-408.05,0.00026849,2]
[357015565,1743579049901,-1017.0,0.00026904,2]
[357015566,1743579049911,-151.0,0.00026904,2]
[357015567,1743579049921,-643.0,0.00026904,2]
[357015568,1743579049930,-250.0,0.00027,2]
[357015569,1743579050081,-250.0,0.00027,2]
[357015570,1743579050091,-994.62156315,0.00027,2]
[357015571,1743579050103,-3529.3,0.00027123,2]
[357015572,1743579050112,-150.0,0.00027397,2]
[357015573,1743579050122,-1413.71,0.00027397,2]
[357015574,1743579050132,-496.97,0.00027397,2]
[357015575,1743579050141,-193.15997289,0.000275,2]
[357015576,1743579050151,-1112.82,0.00027832,2]
[357015577,1743579050160,-1010.35121187,0.00028172,3]
[357015578,1743579050170,-150.0,0.00028767,2]
[357015579,1743579050180,-1413.71,0.00028767,2]
[357015580,1743579050190,-300.0,0.00029,2]
[357015581,1743579050200,-350.74456291,0.00029012,2]
[357015582,1743579050209,-162.57649127,0.00029567,2]
[357015583,1743579050219,-500.0,0.00029781,2]
[357015584,1743579050229,-505.0,0.00029781,2]
[357015585,1743579050240,-1012.507,0.00029904,2]
[357015586,1743579050250,-151.0,0.00029904,2]
[357015587,1743579050260,-495.067,0.00029904,2]
[357015588,1743579050271,-506.62516583,0.0003,5]
[357015589,1743579050281,-61214.05573443,0.0003,2]
[357015590,1743579050291,-463.11570012,0.0003,2]
[357015591,1743579050301,-924.21355534,0.0003,15]
[357015592,1743579050310,-1112.82,0.00030096,2]
[357015593,1743579050319,-150.0,0.00030136,2]
[357015594,1743579050330,-1413.71,0.00030137,2]
[357015595,1743579050340,-36925.29613257,0.00030187,3]
[357015596,1743579050350,-1890.33316016,0.000306,2]
[357015597,1743579050360,-200.0,0.00031,2]
[357015598,1743579050373,-159.06856237,0.00031,2]
[357015599,1743579050382,-350.0,0.00031,2]
[357015600,1743579050392,-1500.0,0.00031498,5]
[357015601,1743579050402,-150.0,0.00031506,2]
[357015602,1743579050412,-1413.71,0.00031507,2]
[357015603,1743579050421,-444.46,0.00031523,2]
[357015604,1743579050431,-783.54,0.00031523,2]
[357015605,1743579050441,-444.46,0.00031523,2]
[357015606,1743579050451,-444.46,0.00031523,2]
[357015607,1743579050460,-785.2,0.00031523,2]
[357015608,1743579050470,-442.82,0.00031523,2]
[357015609,1743579050480,-783.54,0.00031523,2]
[357015610,1743579050489,-450.03,0.00031523,2]
[357015611,1743579050503,-558.26567667,0.000318,2]
[357015612,1743579050513,-300.0,0.000319,2]
[357015613,1743579050523,-300.0,0.000319,2]
[357015614,1743579050532,-300.0,0.000319,2]
[357015615,1743579050542,-593.72268095,0.000319,2]
[357015616,1743579050551,-150.0,0.00032,2]
[357015617,1743579050561,-1112.82,0.0003236,2]
[357015618,1743579050571,-163.16,0.00032646,2]
[357015619,1743579050582,-408.05,0.00032646,2]
[357015620,1743579050592,-150.0,0.00032876,2]
[357015621,1743579050602,-1413.71,0.00032877,2]
[357015622,1743579050612,-151.0,0.00032904,2]
[357015623,1743579050622,-400.0,0.00033,2]
[357015624,1743579050631,-200.0,0.00033151,2]
[357015625,1743579050641,-1837.6366747,0.00033216,4]
[357015626,1743579050650,-162.57649127,0.00033233,2]
[357015627,1743579050660,-989.8490876,0.0003325,5]
[357015628,1743579050669,-294.31,0.0003326,7]
[357015629,1743579050678,-504.67,0.0003326,7]
[357015630,1743579050688,-2000.0,0.000335,2]
[357015631,1743579050697,-10030.23338334,0.00033551,2]
[357015632,1743579050707,-1036.54790457,0.00033569,5]
[357015633,1743579050717,-1026.10546999,0.00033573,5]
[357015634,1743579050727,-1043.06454916,0.00033573,5]
[357015635,1743579050737,-1222.06279775,0.00033573,5]
[357015636,1743579050746,-152.629964,0.00033573,7]
[357015637,1743579050756,-156.216439,0.00033573,7]
[357015638,1743579050765,-520.46,0.00034,2]
[357015639,1743579050775,-150.0,0.00034246,2]
[357015640,1743579050785,-150.0,0.00034254,2]
[357015641,1743579050795,-671.61903425,0.00034254,2]
[357015642,1743579050804,-200.0,0.00034258,2]
[357015643,1743579050814,-151.59,0.0003426,2]
[357015644,1743579050823,-1000.0,0.0003427,2]
[357015645,1743579050833,-1000.0,0.0003427,2]
[357015646,1743579050843,-1953.01708365,0.0003427,2]
[357015647,1743579050853,-503.27493108,0.0003427,2]
[357015648,1743579050863,-252.54,0.000343,2]
[357015649,1743579050873,-1483.45513339,0.00034386,2]
[357015650,1743579050882,-2124.37028876,0.00034386,2]
[357015651,1743579050892,-8691.0,0.00034386,14]
[357015652,1743579050901,-3729.64854772,0.00034386,2]
[357015653,1743579050910,-3279.1944112,0.00034386,2]
[357015654,1743579050920,-176.15257704,0.00034386,2]
[357015655,1743579050930,-5108.13058257,0.00034386,7]
[357015656,1743579050939,-3191.85207367,0.00034386,2]
[357015657,1743579050949,-2003.45498394,0.00034386,2]
[357015658,1743579050958,-9803.57642453,0.00034386,7]
[357015659,1743579050968,-500.0,0.00034386,3]
[357015660,1743579050977,-984.62,0.00034386,60]
[357015661,1743579050987,-306.00718138,0.00034386,30]
[357015662,1743579050997,-407.0,0.00034386,120]
[357015663,1743579051006,-897.34930878,0.00034386,60]
[357015664,1743579051015,-696.6123824,0.00034386,30]
[357015665,1743579051025,-1025.07629914,0.00034386,30]
[357015666,1743579051034,-787.9710327,0.00034386,90]
[357015667,1743579051044,-999.999994,0.00034386,120]
[357015668,1743579051053,-576.62533673,0.00034386,30]
[357015669,1743579051063,-580.63127274,0.00034386,91]
[357015670,1743579051072,-692.68639688,0.00034386,120]
[357015671,1743579051081,-2001.03695612,0.00034386,120]
[357015672,1743579051090,-1372.15663031,0.00034386,120]
[357015673,1743579051099,-437.77615215,0.00034386,120]
[357015674,1743579051109,-935.58531551,0.00034386,30]
[357015675,1743579051118,-2088.01345541,0.00034386,30]
[357015676,1743579051127,-815.19620207,0.00034386,30]
[357015677,1743579051137,-219.61402288,0.00034386,30]
[357015678,1743579051146,-221.39214351,0.00034386,120]
[357015679,1743579051155,-1323.62388163,0.00034386,120]
[357015680,1743579051165,-945.67531608,0.00034386,120]
[357015681,1743579051174,-150.12195243,0.00034386,30]
[357015682,1743579051184,-1601.20150358,0.00034386,120]
[357015683,1743579051193,-1000.0,0.00034386,30]
[357015684,1743579051203,-351.3389338,0.00034386,120]
[357015685,1743579051213,-662.9522802,0.00034386,90]
[357015686,1743579051222,-1106.617139,0.00034386,120]
[357015687,1743579051232,-823.590256,0.00034386,120]
[357015688,1743579051241,-500.37459538,0.00034386,30]
[357015689,1743579051251,-240.42687724,0.00034386,60]
[357015690,1743579051261,-324.15475488,0.00034386,30]
[357015691,1743579051271,-1929.2721948,0.00034386,120]
[357015692,1743579051280,-208.39198272,0.00034386,120]
[357015693,1743579051290,-170.29513632,0.00034386,120]
[357015694,1743579051299,-1906.40019636,0.00034386,120]
[357015695,1743579051309,-1234.4691532,0.00034386,120]
[357015696,1743579051319,-235.52947251,0.00034386,60]
[357015697,1743579051329,-216.02205971,0.00034386,120]
[357015698,1743579051339,-1849.52688087,0.00034386,120]
[357015699,1743579051349,-1376.62356903,0.00034386,120]
[357015700,1743579051359,-169.5368378,0.00034386,30]
[357015701,1743579051369,-385.60970203,0.00034386,120]
[357015702,1743579051379,-957.4229643,0.00034386,120]
[357015703,1743579051389,-2028.5597565,0.00034386,120]
[357015704,1743579051398,-150.12347685,0.00034386,120]
[357015705,1743579051407,-1049.14354786,0.00034386,120]
[357015706,1743579051417,-1082.40869191,0.00034386,120]
[357015707,1743579051426,-1193.80334207,0.00034386,2]
[357015708,1743579051436,-441.38435457,0.00034386,30]
[357015709,1743579051445,-962.23480301,0.00034386,120]
[357015710,1743579051454,-763.42536409,0.00034386,30]
[357015711,1743579051463,-952.11794914,0.00034386,120]
[357015712,1743579051473,-320.88191219,0.00034386,30]
[357015713,1743579051482,-1492.79229747,0.00034386,30]
[357015714,1743579051494,-358.32485726,0.00034386,120]
[357015715,1743579051506,-1283.19792569,0.00034386,120]
[357015716,1743579051515,-2031.96389416,0.00034386,120]
[357015717,1743579051525,-221.948449,0.00034386,30]
[357015718,1743579051534,-1650.50046191,0.00034386,30]
[357015719,1743579051543,-155.22862759,0.00034386,120]
[357015720,1743579051554,-2694.2689893,0.00034386,30]
[357015721,1743579051564,-243.37223219,0.00034386,30]
[357015722,1743579051574,-894.26027438,0.00034386,120]
[357015723,1743579051584,-1761.3041248,0.00034386,30]
[357015724,1743579051593,-2328.24082731,0.00034386,30]
[357015725,1743579051603,-1275.77156461,0.00034386,120]
[357015726,1743579051613,-502.8703962,0.00034386,90]
[357015727,1743579051623,-1559.40443972,0.00034386,120]
[357015728,1743579051632,-667.11988389,0.00034386,120]
[357015729,1743579051642,-501.4758473,0.00034386,5]
[357015730,1743579051651,-1293.94363638,0.00034386,120]
[357015731,1743579051660,-1098.84365687,0.00034386,120]
[357015732,1743579051670,-843.26917576,0.00034386,120]
[357015733,1743579051680,-211.36888836,0.00034386,120]
[357015734,1743579051689,-979.07115259,0.00034386,120]
[357015735,1743579051698,-210.7753707,0.00034386,120]